bitfinex/quotes_ETHUSD_20260217
["timestamp","ask_amount","ask_price","bid_price","bid_amount"]
[1771344329767,0.0011,1990.9,1990.1,15.18295016]
[1771344329968,0.0011,1990.9,1990.2,6.138701]
[1771344330168,1.25502008,1992.0,1990.4,1.71131818]
[1771344330475,5.01995526,1992.1,1990.5,0.45528925]
[1771344330676,5.01995526,1992.1,1990.4,1.25602893]
[1771344330677,1.25502008,1992.0,1990.6,0.554]
[1771344330877,5.01995526,1992.1,1990.7,11.807474]
[1771344330878,1.25500491,1992.1,1990.7,11.807474]
[1771344331077,1.25500491,1992.1,1990.7,0.905]
[1771344331294,0.003,1992.3,1990.8,0.45528925]
[1771344331491,1.25783693,1992.3,1990.9,0.45528925]
[1771344331968,1.25783693,1992.3,1991.0,1.459]
[1771344332174,0.003,1992.3,1991.1,1.25558736]
[1771344332403,1.99541094,1993.7,1991.6,7.12740216]
[1771344332570,2.045748,1993.5,1991.8,7.548855]
[1771344332771,0.48641094,1993.4,1991.2,7.22980216]
[1771344332977,1.25401284,1993.6,1991.3,1.459]
[1771344332978,0.48641094,1992.9,1991.3,1.459]
[1771344333194,0.48641094,1992.9,1991.2,0.554]
[1771344333195,12.73682,1992.7,1991.2,0.554]
[1771344333400,11.66901791,1992.7,1991.2,0.554]
[1771344333579,0.48641094,1992.6,1991.2,0.554]
[1771344333776,12.141754,1992.5,1991.2,0.554]
[1771344333983,0.48641094,1992.6,1991.2,0.554]
[1771344334170,6.67211291,1993.1,1990.2,0.45528925]
[1771344334171,0.48641094,1992.2,1990.2,0.45528925]
[1771344334373,1.25464217,1992.6,1990.7,0.45528925]
[1771344334677,6.67211291,1993.1,1990.6,30.97733791]
[1771344334678,1.25439036,1993.0,1991.2,8.68302425]
[1771344334866,1.25439036,1993.0,1991.0,6.67211291]
[1771344334867,5.41988094,1992.9,1990.7,0.45528925]
[1771344335072,3.68009,1992.8,1990.9,4.399026]
[1771344335296,0.621,1992.7,1991.0,0.45528925]
[1771344335681,4.48,1992.6,1991.0,0.45528925]
[1771344335868,2.075,1992.6,1990.8,1.459]
[1771344336072,0.621,1992.6,1990.9,0.45528925]
[1771344336302,1.25476811,1992.4,1991.0,1.25565042]
[1771344337097,5.01907247,1992.5,1991.1,0.45528925]
[1771344337098,1.2547461,1992.5,1991.1,0.45528925]
[1771344337676,1.39141094,1992.9,1991.0,1.25565042]
[1771344337677,0.48641094,1993.6,1991.3,0.45528925]
[1771344337881,1.25426449,1993.2,1991.5,0.45528925]
[1771344338082,1.25426449,1993.2,1991.6,0.905]
[1771344338300,1.25426449,1993.2,1991.7,1.25520911]
[1771344338503,5.01555712,1993.8,1992.0,9.001989]
[1771344338504,1.25394994,1993.7,1992.0,9.001989]
[1771344338709,3.53274428,1994.0,1992.3,6.67211291]
[1771344338920,1.25376128,1994.0,1992.4,1.36028925]
[1771344339287,0.48641094,1994.5,1992.4,1.36028925]
[1771344339600,5.01341128,1994.8,1992.9,16.92786]
[1771344339601,1.25325847,1994.8,1992.9,16.92786]
[1771344339829,11.81621514,1995.3,1992.9,16.92786]
[1771344339830,0.48641094,1995.1,1993.2,0.45528925]
[1771344339979,0.48641094,1994.8,1993.0,1.459]
[1771344340175,0.48641094,1994.8,1993.0,1.91428925]
[1771344340380,0.48641094,1994.8,1993.2,3.108413]
[1771344340381,1.2533213,1994.7,1993.2,3.108413]
[1771344340683,1.2533213,1994.7,1993.2,0.45528925]
[1771344340883,1.2533213,1994.7,1993.3,11.142501]
[1771344341089,7.16485889,1995.2,1993.4,0.45528925]
[1771344341414,7.16485889,1995.2,1993.3,17.81461391]
[1771344341415,5.01226889,1995.2,1993.5,0.45528925]
[1771344341584,0.0011,1994.9,1993.7,21.173691]
[1771344341784,0.1320822,1995.3,1994.1,6.67211291]
[1771344341998,2.19322113,1996.3,1994.8,11.426564]
[1771344342178,2.19322113,1996.3,1994.2,7.12740216]
[1771344342504,0.94088443,1996.3,1994.9,0.45528925]
[1771344342703,2.1932089,1996.3,1995.1,3.389343]
[1771344342904,2.19321046,1996.3,1995.1,3.389343]
[1771344343106,2.19321046,1996.3,1994.4,1.70879907]
[1771344343293,3.44678,1996.0,1994.4,1.80850982]
[1771344343494,3.44678,1996.0,1994.3,5.91803931]
[1771344343495,16.093562,1995.7,1993.9,1.25382416]
[1771344343701,0.48641094,1995.8,1993.9,0.556]
[1771344343924,2.781626,1995.7,1993.9,0.556]
[1771344344211,19.94111494,1995.4,1993.9,0.556]
[1771344344421,19.94111494,1995.4,1993.5,0.45528925]
[1771344344422,13.90713,1995.0,1993.5,0.557]
[1771344344600,11.03381058,1995.0,1993.5,0.557]
[1771344344926,1.09965058,1995.0,1993.5,0.557]
[1771344345282,0.47665058,1995.9,1993.7,7.12837999]
[1771344345492,7.71516,1995.8,1993.9,0.45626708]
[1771344345705,6.5649,1995.8,1994.0,4.316839]
[1771344345910,5.524333,1995.8,1994.0,2.915682]
[1771344346089,0.47665058,1995.5,1994.0,0.557]
[1771344346301,6.67211291,1995.6,1993.6,0.557]
[1771344346302,0.47665058,1995.1,1993.6,0.557]
[1771344346610,0.624,1995.4,1993.7,15.462183]
[1771344346785,0.624,1995.4,1993.7,8.754381]
[1771344346986,1.25281884,1995.5,1993.7,9.21064808]
[1771344347181,1.72946942,1995.5,1993.6,1.25398351]
[1771344347419,0.625,1995.4,1993.7,1.01426708]
[1771344347911,0.625,1995.4,1993.6,1.25398351]
[1771344348083,18.34731349,1995.3,1993.7,1.462]
[1771344348410,11.13778,1995.2,1993.7,1.462]
[1771344348615,1.25307002,1995.1,1993.8,1.25388704]
[1771344349394,1.25269329,1995.7,1994.0,6.67211291]
[1771344349717,1.25269329,1995.7,1994.1,6.350651]
[1771344349927,1.72934387,1995.7,1993.9,4.129606]
[1771344350124,1.25269329,1995.7,1994.1,6.66379208]
[1771344350289,1.25269329,1995.7,1994.2,7.449636]
[1771344350483,1.25269329,1995.7,1994.1,0.45626708]
[1771344350484,1.25263052,1995.8,1994.4,1.25350982]
[1771344350701,1.25263052,1995.8,1994.5,0.904]
[1771344350984,5.63480617,1996.1,1994.6,4.194383]
[1771344350985,5.00987748,1996.1,1994.6,4.194383]
[1771344351191,5.00987748,1996.1,1994.5,0.904]
[1771344351841,5.63487748,1996.1,1994.6,14.167012]
[1771344352043,5.63487748,1996.1,1994.5,0.904]
[1771344352524,5.63487748,1996.1,1994.6,1.25338413]
[1771344352698,0.626,1996.0,1994.6,1.25338413]
[1771344353021,0.625,1995.9,1994.6,1.25338413]
[1771344353606,5.00987748,1996.1,1994.6,1.25338413]
[1771344353794,5.95065347,1996.3,1995.0,7.13189709]
[1771344353795,0.94088443,1996.3,1995.0,7.13189709]
[1771344353998,0.94088443,1996.3,1995.2,16.960767]
[1771344354197,1.25212507,1996.7,1994.6,1.25338413]
[1771344354425,0.625,1997.3,1995.4,7.484617]
[1771344354625,0.625,1997.3,1995.6,4.017321]
[1771344354626,1.71612334,1997.2,1995.6,4.017321]
[1771344354835,1.71612334,1997.2,1995.5,2.71581884]
[1771344354836,0.0011,1996.1,1995.5,2.71581884]
[1771344355021,9.01323625,1997.2,1995.5,2.71581884]
[1771344355202,0.0011,1996.3,1995.5,2.71581884]
[1771344355415,1.87675245,1997.2,1995.6,5.0609]
[1771344355716,1.87675245,1997.2,1995.5,2.71581884]
[1771344355935,1.96620357,1997.7,1995.5,2.71581884]
[1771344355936,0.1024,1997.8,1995.7,0.45978418]
[1771344356140,0.00723344,1998.3,1996.4,23.36597318]
[1771344356315,0.00723344,1998.3,1996.8,12.559414]
[1771344356498,1.25830038,1998.3,1996.9,1.2519405]
[1771344356695,0.00723344,1998.3,1996.9,1.2519405]
[1771344356900,7.93043822,1998.3,1996.9,0.559]
[1771344357106,1.7226962,1998.3,1996.1,0.45978418]
[1771344357337,1.7226962,1998.3,1996.3,9.098446]
[1771344357516,12.039694,1998.2,1996.3,6.032259]
[1771344357722,7.1364838,1997.8,1996.2,0.559]
[1771344357917,5.202344,1997.7,1996.2,0.559]
[1771344358156,7.1364838,1997.8,1995.7,1.81169329]
[1771344358157,19.84985589,1997.3,1995.7,1.81169329]
[1771344358363,6.67211291,1997.8,1995.7,1.81169329]
[1771344358364,7.1364838,1997.8,1995.7,1.81169329]
[1771344358661,1.2515018,1997.6,1996.1,4.65982118]
[1771344358812,1.25131387,1998.0,1996.2,0.903]
[1771344359017,1.25131387,1998.0,1996.4,14.036548]
[1771344359212,1.25131387,1998.0,1996.3,1.01878418]
[1771344359213,1.25131387,1998.0,1996.3,0.45978418]
[1771344359543,1.25131387,1998.0,1996.0,6.67211291]
[1771344359544,1.25131387,1998.0,1996.4,1.462]
[1771344359726,1.25131387,1998.0,1996.5,1.462]
[1771344359927,1.87631387,1998.0,1996.5,1.462]
[1771344360139,1.25131387,1998.0,1996.6,0.559]
[1771344360667,6.67211291,1997.7,1996.4,0.559]
[1771344360945,0.46437089,1997.5,1995.9,0.406]
[1771344361239,0.46437089,1997.3,1995.9,0.406]
[1771344361445,0.46437089,1997.8,1996.0,17.758616]
[1771344361650,5.00472538,1998.2,1996.4,3.722638]
[1771344361819,5.00472538,1998.2,1996.2,0.45978418]
[1771344361820,5.00472538,1998.2,1996.3,10.232289]
[1771344362014,11.889492,1998.0,1996.2,0.45978418]
[1771344362219,5.00472538,1998.2,1996.5,7.989766]
[1771344362532,1.25131387,1997.9,1996.6,5.56836775]
[1771344362719,1.25131387,1997.9,1996.7,1.2520659]
[1771344362915,0.626,1998.2,1996.7,1.2520659]
[1771344362916,12.76613307,1998.2,1996.7,1.2520659]
[1771344363148,12.76613307,1998.2,1996.6,1.8120817]
[1771344363149,0.46437089,1998.1,1996.6,1.8120817]
[1771344363350,0.46437089,1997.7,1996.2,1.25237952]
[1771344363566,0.46437089,1997.5,1996.1,1.81239898]
[1771344363722,1.09037089,1997.5,1996.1,1.81239898]
[1771344363924,0.46437089,1997.3,1995.7,0.56]
[1771344364124,31.63105391,1997.4,1995.5,0.56]
[1771344364125,6.67211291,1997.0,1995.5,0.56]
[1771344364435,0.46437089,1997.1,1995.5,0.56]
[1771344364436,0.626,1996.9,1995.5,0.56]
[1771344364637,1.2520032,1996.8,1995.6,1.25275606]
[1771344364848,1.8770032,1996.8,1994.9,11.68389058]
[1771344365150,4.680128,1996.5,1995.0,1.25313283]
[1771344365357,7.1364838,1996.6,1994.7,1.25331288]
[1771344365358,7.1364838,1996.2,1994.7,1.25331288]
[1771344365517,4.1335,1996.1,1994.7,1.25331288]
[1771344365716,0.626,1996.1,1994.7,1.25331288]
[1771344366146,0.46437089,1996.2,1994.7,1.25331288]
[1771344366343,1.09037089,1996.2,1994.7,1.25331288]
[1771344366545,1.09037089,1996.2,1994.8,0.56]
[1771344366745,1.25244226,1996.1,1994.9,1.25319564]
[1771344367063,5.00976904,1996.2,1994.9,1.25319564]
[1771344367064,5.00852201,1996.6,1994.9,1.25319564]
[1771344367219,16.487238,1996.4,1994.9,1.25319564]
[1771344367420,7.971834,1996.4,1994.9,1.25319564]
[1771344367833,13.035718,1996.2,1994.7,1.2533213]
[1771344368016,0.626,1996.1,1994.7,1.8123213]
[1771344368251,0.46437089,1996.3,1994.7,1.8123213]
[1771344368462,1.09037089,1996.3,1994.7,1.8123213]
[1771344368658,1.25237952,1996.2,1994.8,9.147567]
[1771344368951,1.25237952,1996.2,1994.8,2.350536]
[1771344369558,1.25237952,1996.2,1994.8,0.559]
[1771344369892,17.51556789,1996.1,1994.8,0.559]
[1771344370051,5.63451808,1996.4,1994.8,14.521029]
[1771344370052,0.625,1996.4,1994.8,14.521029]
[1771344370263,1.25228368,1996.4,1995.0,9.038878]
[1771344370436,1.25228368,1996.4,1994.9,0.559]
[1771344370634,1.87737802,1996.3,1995.0,1.25313283]
[1771344370836,1.25231737,1996.3,1995.0,1.25313283]
[1771344371025,1.25181513,1997.1,1995.2,7.10295668]
[1771344371234,1.25181513,1997.1,1995.3,15.5003]
[1771344371435,5.00726052,1997.2,1995.2,7.10295668]
[1771344371436,1.87679449,1997.2,1995.5,20.36698218]
[1771344371639,1.25179449,1997.2,1995.7,12.262735]
[1771344371822,2.467525,1997.1,1995.1,0.45978418]
[1771344372025,7.89496699,1997.2,1995.3,9.830767]
[1771344372230,0.625,1997.1,1995.4,5.158059]
[1771344372463,1.25179449,1997.2,1995.4,12.26101568]
[1771344372650,1.25179449,1997.2,1995.8,1.25263052]
[1771344372847,1.25179449,1997.2,1995.9,1.463]
[1771344373048,1.87773601,1997.3,1995.9,1.463]
[1771344373250,0.626,1997.3,1995.9,1.463]
[1771344373449,1.2516598,1997.4,1995.9,1.463]
[1771344373661,1.8776598,1997.4,1995.9,1.463]
[1771344373838,0.626,1997.4,1995.9,1.463]
[1771344374168,0.626,1997.5,1996.0,3.039875]
[1771344374344,1.87748932,1997.7,1996.0,3.039875]
[1771344374752,0.46073921,1997.6,1996.0,1.25250501]
[1771344374957,6.6431725,1997.3,1996.0,1.25250501]
[1771344375134,0.625,1997.4,1996.0,1.25250501]
[1771344375452,0.625,1997.5,1996.0,1.25250501]
[1771344376260,1.71222853,1997.7,1996.0,1.25250501]
[1771344376468,0.003,1996.7,1996.0,1.25250501]
[1771344377564,0.003,1996.7,1995.7,0.903]
[1771344377764,7.10691171,1996.7,1995.2,1.25300721]
[1771344377935,0.625,1996.6,1995.2,1.25300721]
[1771344378135,1.528,1996.6,1995.2,1.25300721]
[1771344378337,1.98873921,1996.6,1995.2,1.25300721]
[1771344378531,6.379164,1996.5,1995.2,1.25300721]
[1771344378754,1.25225405,1996.4,1995.1,5.01224637]
[1771344379069,1.25225405,1996.4,1995.1,1.25307002]
[1771344379070,1.71299326,1996.4,1995.1,1.25307002]
[1771344379432,0.46073921,1996.2,1994.6,1.25338413]
[1771344379840,1.528,1996.1,1994.6,1.25338413]
[1771344380244,0.46073921,1996.2,1994.8,0.001]
[1771344380450,0.625,1996.0,1994.8,0.001]
[1771344380855,1.25256776,1995.9,1994.8,0.001]
[1771344381138,1.71330697,1995.9,1994.8,0.001]
[1771344381355,0.46073921,1996.4,1994.8,0.001]
[1771344381555,0.46073921,1996.4,1994.9,1.463]
[1771344381556,1.25236023,1996.3,1994.9,1.463]
[1771344381968,1.87736023,1996.3,1994.9,1.463]
[1771344382172,2.33809944,1996.3,1994.9,1.463]
[1771344382479,2.33809944,1996.3,1994.8,0.001]
[1771344383178,10.497291,1996.2,1994.8,0.001]
[1771344383480,1.528,1996.1,1994.8,0.001]
[1771344384060,0.46073921,1995.9,1994.8,0.001]
[1771344384636,0.46073921,1995.7,1994.8,0.001]
[1771344384840,0.46073921,1995.7,1994.3,1.25353631]
[1771344385173,0.46073921,1995.2,1994.0,1.462]
[1771344385339,0.624,1995.1,1994.0,2.71576063]
[1771344385665,1.87694441,1995.3,1994.0,2.71576063]
[1771344385837,1.87694441,1995.3,1994.0,1.462]
[1771344385838,6.954157,1995.2,1994.0,1.462]
[1771344386043,0.46073921,1995.2,1994.0,0.903]
[1771344386737,1.25294441,1995.3,1994.0,2.15675809]
[1771344386944,0.624,1995.2,1994.0,2.15675809]
[1771344387340,1.25307002,1995.1,1994.0,2.15675809]
[1771344387540,5.01228008,1995.2,1994.0,2.15675809]
[1771344387541,0.624,1995.2,1994.0,2.15675809]
[1771344388776,1.25281884,1995.5,1994.1,0.558]
[1771344389381,0.46073921,1995.4,1994.1,1.81168793]
[1771344389749,0.46073921,1995.3,1994.1,1.81169755]
[1771344390155,0.624,1995.3,1994.1,1.81169755]
[1771344390651,0.623,1995.2,1994.1,0.558]
[1771344390853,0.623,1995.2,1994.1,1.81169009]
[1771344391256,1.71380923,1995.1,1994.1,0.558]
[1771344391476,1.71380923,1995.1,1994.0,0.903]
[1771344391477,0.46073921,1994.9,1993.9,0.001]
[1771344391676,0.46073921,1994.9,1993.9,1.25481914]
[1771344391886,0.46073921,1994.9,1993.9,1.2548219]
[1771344392055,0.46073921,1994.9,1993.9,0.001]
[1771344392477,25.80745771,1994.8,1993.9,0.001]
[1771344392777,25.80745771,1994.8,1993.8,0.001]
[1771344392778,0.46073921,1994.7,1993.4,1.25410415]
[1771344393076,17.53068621,1994.5,1993.1,1.81227943]
[1771344393379,6.54129072,1994.4,1993.1,1.81227943]
[1771344393568,7.00202993,1994.4,1993.1,1.81227943]
[1771344393879,5.47502993,1994.4,1994.0,0.001]
[1771344394175,5.47502993,1994.4,1993.1,1.81227943]
[1771344394176,1.527,1994.3,1993.1,1.81227943]
[1771344394378,5.47502993,1994.4,1993.9,0.001]
[1771344394548,0.624,1994.3,1993.9,0.001]
[1771344395146,1.25363554,1994.2,1993.1,1.81227943]
[1771344395352,1.87863554,1994.2,1993.1,1.81227943]
[1771344395955,1.25363554,1994.2,1993.1,1.81227943]
[1771344396284,0.625,1994.1,1993.1,1.81227943]
[1771344396656,0.625,1994.1,1993.1,1.25432734]
[1771344396850,0.625,1994.0,1992.9,2.15741415]
[1771344397388,1.25382416,1993.9,1992.9,1.25441415]
[1771344397892,1.25382416,1993.9,1992.8,5.01781323]
[1771344397893,1.25382416,1993.9,1992.3,5.01909854]
[1771344398480,1.71456337,1993.9,1992.3,5.01909854]
[1771344398687,0.624,1993.8,1992.3,5.01909854]
[1771344398986,0.624,1993.8,1992.3,4.66549854]
[1771344399360,1.25394994,1993.7,1992.3,4.66549854]
[1771344399558,6.6431725,1992.9,1991.1,0.46732337]
[1771344399910,0.625,1993.2,1991.5,0.46732337]
[1771344400054,5.01516721,1993.1,1991.6,0.559]
[1771344400254,0.46073921,1993.1,1991.6,0.559]
[1771344400482,0.625,1993.2,1991.6,1.02632337]
[1771344400683,1.08573921,1993.2,1991.6,0.559]
[1771344400981,7.89712244,1993.7,1991.4,1.02632337]
[1771344400982,7.10391171,1993.0,1991.4,1.02632337]
[1771344401351,1.529,1993.1,1991.5,1.72265854]
[1771344401352,0.625,1993.1,1991.5,1.72265854]
[1771344401689,1.25401284,1993.6,1991.9,0.46732337]
[1771344401884,2.071227,1993.5,1992.0,1.463]
[1771344402055,6.6431725,1993.3,1992.1,0.559]
[1771344402381,0.46073921,1993.2,1991.7,0.559]
[1771344402579,1.71475205,1993.6,1991.7,0.559]
[1771344402781,0.625,1993.5,1991.8,0.46732337]
[1771344403078,8.178959,1993.4,1991.8,0.46732337]
[1771344403251,2.447,1993.4,1991.8,0.46732337]
[1771344403454,2.447,1993.4,1992.0,0.46732337]
[1771344403455,1.25413865,1993.4,1992.0,0.46732337]
[1771344404277,1.71487786,1993.4,1991.9,1.81308308]
[1771344404463,1.25413865,1993.4,1992.0,0.46559263]
[1771344405089,5.01528749,1994.0,1992.2,0.46559263]
[1771344405262,5.01528749,1994.0,1992.4,0.46559263]
[1771344405464,5.01528749,1994.0,1992.6,1.25464217]
[1771344406470,5.01528749,1994.0,1992.7,0.558]
[1771344406669,5.01528749,1994.0,1992.7,0.557]
[1771344406872,5.01528749,1994.0,1992.6,1.25464217]
[1771344407065,5.01528749,1994.0,1992.7,0.557]
[1771344407413,5.01528749,1994.0,1992.7,0.357]
[1771344407567,1.25376128,1994.1,1992.8,1.25451625]
[1771344407913,4.78581,1994.0,1992.8,1.25451625]
[1771344408063,4.78691,1994.0,1992.8,1.25451625]
[1771344408417,0.0011,1994.0,1992.8,1.72010888]
[1771344409509,0.0011,1994.0,1992.8,1.25451625]
[1771344409667,0.0011,1994.0,1992.9,1.461]
[1771344409999,0.0011,1994.0,1992.9,0.557]
[1771344410489,6.6431725,1993.9,1992.7,0.557]
[1771344410996,7.10048152,1993.9,1992.7,0.557]
[1771344411184,7.10048152,1993.9,1992.4,1.25472576]
[1771344411185,11.447344,1993.7,1992.4,1.25472576]
[1771344411566,0.45730902,1993.8,1992.4,1.25472576]
[1771344411763,1.25394994,1993.7,1992.4,1.25472576]
[1771344412777,1.72491988,1993.7,1992.1,0.001]
[1771344412982,7.11414244,1993.5,1992.2,2.71384813]
[1771344413300,0.47096994,1993.5,1992.2,0.555]
[1771344413502,0.622,1993.4,1992.2,0.555]
[1771344413967,1.25420157,1993.3,1992.3,1.25483109]
[1771344414623,1.25420157,1993.3,1992.2,5.57437341]
[1771344414624,7.11414244,1993.2,1992.1,1.25594972]
[1771344414772,0.622,1993.2,1992.1,1.25594972]
[1771344415598,0.622,1993.2,1992.1,0.001]
[1771344415771,0.622,1993.2,1992.2,0.555]
[1771344416301,0.47096994,1993.0,1992.1,0.001]
[1771344416782,7.11414244,1992.7,1992.1,0.001]
[1771344417104,7.11414244,1992.7,1991.8,0.001]
[1771344417105,0.621,1992.6,1991.8,0.001]
[1771344417405,1.09196994,1992.6,1991.8,0.001]
[1771344417613,0.47096994,1992.5,1991.8,0.001]
[1771344418105,1.25476811,1992.4,1991.8,0.001]
[1771344418523,5.01808194,1992.8,1991.8,0.001]
[1771344418688,0.621,1992.7,1991.8,0.001]
[1771344419608,5.01808194,1992.8,1991.8,0.554]
[1771344419803,5.01808194,1992.8,1991.8,1.458]
[1771344420004,5.01789455,1992.9,1991.8,1.458]
[1771344420198,5.01789455,1992.9,1991.9,1.25508308]
[1771344420909,1.25432742,1993.1,1991.8,0.001]
[1771344421112,0.621,1993.0,1991.8,1.25613332]
[1771344421316,1.25432742,1993.1,1991.8,1.7199839]
[1771344421692,1.25432742,1993.1,1991.9,0.46385058]
[1771344422015,0.621,1993.4,1991.9,0.46385058]
[1771344422315,5.01549526,1993.9,1992.4,0.46385058]
[1771344422488,1.25486886,1994.0,1992.6,0.46385058]
[1771344422690,0.0011,1994.0,1992.9,15.946331]
[1771344422895,0.0011,1994.0,1993.0,0.46385058]
[1771344423124,0.0011,1994.0,1993.2,0.46385058]
[1771344423427,0.0011,1994.0,1993.3,1.456]
[1771344423605,0.0011,1994.0,1993.3,1.91985058]
[1771344423913,0.0011,1994.0,1993.3,1.456]
[1771344424216,0.0011,1994.0,1993.2,1.80724729]
[1771344424582,0.0011,1994.0,1993.3,0.46385058]
[1771344424921,0.0011,1994.0,1993.2,2.27109787]
[1771344425118,0.0011,1994.0,1993.3,0.46385058]
[1771344425589,0.0011,1994.2,1993.5,0.46385058]
[1771344426266,0.0011,1994.2,1993.6,1.25401284]
[1771344426423,0.0011,1994.2,1993.7,1.36785058]
[1771344426744,1.25608224,1995.1,1993.8,0.552]
[1771344427043,0.003,1995.1,1993.9,0.46385058]
[1771344427245,0.003,1995.1,1994.1,0.44885058]
[1771344427611,0.003,1995.1,1994.3,0.46385058]
[1771344427815,1.25244226,1996.1,1994.6,8.325512]
[1771344428048,1.25244226,1996.1,1994.6,0.46385058]
[1771344428244,5.01086904,1996.2,1994.6,0.46385058]
[1771344428245,0.0011,1996.2,1994.8,0.46385058]
[1771344428548,0.0011,1996.2,1994.7,1.8063213]
[1771344428549,0.0011,1996.2,1995.0,0.46385058]
[1771344428713,0.0011,1996.2,1995.3,8.149725]
[1771344428918,0.0011,1996.2,1995.4,1.458]
[1771344429126,0.0011,1996.2,1995.2,0.46385058]
[1771344429328,0.0011,1996.2,1995.3,0.554]
[1771344429534,0.0011,1996.2,1994.8,0.46385058]
[1771344429736,0.0011,1996.2,1995.0,12.91388358]
[1771344429943,0.0011,1996.2,1995.1,5.21064958]
[1771344430133,0.0011,1996.2,1995.4,1.25288162]
[1771344430442,0.0011,1996.2,1995.5,0.554]
[1771344430748,0.0011,1996.2,1995.6,0.904]
[1771344432430,0.0011,1996.2,1995.7,1.25269329]
[1771344432624,0.0011,1996.2,1995.8,1.456]
[1771344433448,0.003,1996.7,1996.1,0.46385058]
[1771344434521,0.003,1996.7,1996.2,1.25237952]
[1771344434723,5.00546816,1997.9,1996.3,0.55]
[1771344434724,28.849304,1997.8,1996.3,0.55]
[1771344435145,0.46684795,1997.7,1996.2,1.25237952]
[1771344435320,0.46684795,1997.7,1996.4,1.456]
[1771344435535,6.116111,1997.8,1996.4,1.456]
[1771344435735,2.854489,1997.8,1996.4,1.456]
[1771344436053,0.46684795,1997.8,1996.5,1.456]
[1771344436555,0.46684795,1997.6,1995.8,5.471293]
[1771344436721,1.25143915,1997.7,1996.4,0.903]
[1771344436923,1.25143915,1997.7,1996.5,0.552]
[1771344437532,7.8897821,1998.0,1996.5,1.01377492]
[1771344437855,8.35663005,1998.0,1996.6,1.455]
[1771344438350,0.46684795,1997.7,1996.4,0.552]
[1771344438551,0.46684795,1997.7,1995.9,1.25256776]
[1771344438552,0.0011,1996.6,1996.2,0.552]
[1771344438952,0.0011,1996.6,1995.7,5.01027105]
[1771344439151,0.0011,1996.6,1996.1,0.551]
[1771344439453,0.0011,1996.6,1996.0,0.551]
[1771344440543,0.0011,1996.6,1996.1,1.25244226]
[1771344440858,1.71845054,1997.5,1996.1,1.25244226]
[1771344441065,8.35693256,1997.5,1996.1,1.25244226]
[1771344441353,1.25137651,1997.8,1996.2,1.454]
[1771344441556,1.25137651,1997.8,1996.1,1.71421718]
[1771344441557,0.46684795,1997.7,1996.1,1.25244226]
[1771344441732,1.25137651,1997.8,1996.2,0.551]
[1771344441733,0.46684795,1997.4,1996.2,0.551]
[1771344442139,0.46684795,1997.4,1996.1,1.25244226]
[1771344442335,0.46684795,1997.4,1996.2,1.454]
[1771344442535,1.25168978,1997.3,1996.3,0.551]
[1771344442736,1.71853773,1997.3,1996.3,0.551]
[1771344442938,1.71853773,1997.3,1995.8,5.01050968]
[1771344443248,0.46684795,1997.1,1995.9,1.453]
[1771344443453,6.06265982,1997.9,1996.1,0.46177492]
[1771344443645,1.71816182,1997.9,1996.1,0.46177492]
[1771344444259,1.71816182,1997.9,1995.9,1.453]
[1771344444260,1.71816182,1997.9,1996.3,9.82262792]
[1771344444459,1.71816182,1997.9,1996.3,0.46177492]
[1771344444661,1.71816182,1997.9,1996.4,2.70625405]
[1771344445365,0.46684795,1997.8,1996.4,1.25225405]
[1771344445553,0.46684795,1997.7,1996.5,0.55]
[1771344445750,0.46684795,1997.6,1996.5,0.55]
[1771344446165,0.46684795,1997.6,1996.4,0.55]
[1771344446567,7.421979,1997.7,1996.4,0.55]
[1771344446863,1.71834975,1997.6,1996.5,1.25219133]
[1771344447470,1.71834975,1997.6,1996.4,1.25221678]
[1771344447669,5.0051542,1998.0,1996.4,1.80221678]
[1771344448051,5.47200215,1998.0,1996.5,1.453]
[1771344448468,5.47200215,1998.0,1996.4,1.25221678]
[1771344448469,6.63848202,1997.5,1996.4,1.25221678]
[1771344448766,1.25162711,1997.4,1996.4,1.80221678]
[1771344448963,0.46684795,1997.6,1996.0,6.46298279]
[1771344449164,0.46684795,1997.6,1996.0,6.92475771]
[1771344449962,7.10532997,1997.6,1996.0,5.47175771]
[1771344450163,7.10532997,1997.6,1996.1,1.452]
[1771344450461,0.46684795,1997.6,1996.1,1.452]
[1771344450967,0.46684795,1997.6,1995.8,5.01002004]
[1771344450968,7.10532997,1997.3,1995.8,1.25263052]
[1771344451173,0.46684795,1997.2,1996.0,0.55]
[1771344451553,23.816723,1996.7,1995.2,1.25300721]
[1771344451748,23.816723,1996.7,1995.2,1.80300721]
[1771344451749,0.46684795,1996.6,1995.2,1.80300721]
[1771344452073,0.46684795,1996.4,1994.4,1.25344697]
[1771344452371,0.46684795,1996.2,1994.9,0.551]
[1771344453147,1.25244226,1996.1,1995.0,1.25313283]
[1771344453478,1.25244226,1996.1,1996.0,0.001]
[1771344454259,1.25244226,1996.1,1995.0,1.25313283]
[1771344454461,5.00877073,1996.5,1995.0,1.25313283]
[1771344454768,5.47561868,1996.5,1995.0,1.25313283]
[1771344454981,0.46684795,1996.4,1995.0,1.25313283]
[1771344455184,5.47510087,1996.8,1995.2,1.25300721]
[1771344455342,5.00801282,1996.9,1995.3,0.46177492]
[1771344455541,5.00801282,1996.9,1995.4,3.717]
[1771344456591,5.00801282,1996.9,1995.3,0.46177492]
[1771344456881,5.00801282,1996.9,1995.5,0.55]
[1771344457080,1.2519405,1997.0,1995.5,0.55]
[1771344457081,1.25181513,1997.1,1995.6,0.46177492]
[1771344457283,5.473916,1997.2,1995.7,1.25269329]
[1771344457284,5.00706805,1997.2,1995.7,1.25269329]
[1771344457775,0.46684795,1996.7,1995.0,0.549]
[1771344457975,1.08284795,1996.7,1995.0,1.01077492]
[1771344458378,1.08284795,1996.7,1995.1,0.549]
[1771344458379,6.63848202,1996.4,1995.1,0.549]
[1771344458587,2.820498,1995.9,1994.3,5.01426707]
[1771344458755,0.46684795,1996.0,1994.4,1.36477492]
[1771344458756,0.617,1996.0,1994.4,1.36477492]
[1771344458961,3.367868,1996.3,1994.4,1.36477492]
[1771344459181,3.367868,1996.3,1994.5,0.46177492]
[1771344459389,3.367868,1996.3,1994.6,1.25338413]
[1771344459390,0.46684795,1996.0,1994.6,1.25338413]